fUST/lending_fUST_20240805
["ID","MTS","AMOUNT","RATE_DAILY","PERIOD"]
[334179430,1722811846327,-235.361484,0.0001469,2]
[334179431,1722811846336,-151.0,0.0001469,2]
[334179433,1722811846347,-151.0,0.0001469,2]
[334179435,1722811846359,-151.0,0.0001469,2]
[334179437,1722811846369,-277.029286,0.0001469,2]
[334179438,1722811846379,-277.029286,0.0001469,2]
[334179440,1722811846391,-2182.73842007,0.00014693,2]
[334179442,1722811846401,-150.112233,0.000147,2]
[334179444,1722811846411,-327.42720767,0.0001475,2]
[334179445,1722811846420,-150.0,0.00014759,2]
[334179446,1722811846432,-1216.98239394,0.00014784,2]
[334179449,1722811846447,-4293.02520053,0.00014784,2]
[334179452,1722811846475,-14667.23823533,0.00014784,2]
[334179454,1722811846485,-2232.21,0.00014793,2]
[334179455,1722811846495,-500.0,0.00014794,2]
[334179457,1722811846505,-500.0,0.00014794,2]
[334179458,1722811846515,-500.0,0.00014794,2]
[334179460,1722811846524,-500.0,0.00014794,2]
[334179462,1722811846535,-500.0,0.00014794,2]
[334179464,1722811846550,-560.99485989,0.00014794,2]
[334179466,1722811846561,-500.0,0.00014794,2]
[334179468,1722811846573,-500.0,0.00014794,2]
[334179470,1722811846583,-375.64,0.00014794,2]
[334179472,1722811846593,-500.0,0.00014794,2]
[334179473,1722811846603,-500.0,0.00014794,2]
[334179475,1722811846614,-500.0,0.00014794,2]
[334179479,1722811846832,-411.99976102,0.00014794,2]
[334179480,1722811846842,-500.0,0.00014794,2]
[334179481,1722811846851,-471.79,0.00014794,2]
[334179482,1722811846861,-151.0,0.00014794,2]
[334179483,1722811846871,-500.0,0.00014794,2]
[334179484,1722811846882,-500.0,0.00014794,2]
[334179485,1722811846891,-500.0,0.00014794,2]
[334179486,1722811846900,-172.21678418,0.00014794,2]
[334179487,1722811846913,-508.92597782,0.00014794,2]
[334179488,1722811846922,-500.0,0.00014794,2]
[334179489,1722811846932,-500.0,0.00014794,2]
[334179490,1722811846942,-681.142762,0.00014794,2]
[334179491,1722811846951,-588.11964527,0.00014794,2]
[334179492,1722811846960,-589.99,0.00014794,2]
[334179493,1722811846969,-352.535797,0.00014794,2]
[334179494,1722811846978,-1437.91,0.00014794,2]
[334179495,1722811846987,-352.535797,0.00014794,2]
[334179496,1722811846996,-500.0,0.00014794,2]
[334179497,1722811847006,-151.0,0.00014794,2]
[334179498,1722811847015,-793.29,0.00014794,2]
[334179499,1722811847025,-151.0,0.00014794,2]
[334179500,1722811847034,-166.32,0.00014794,2]
[334179501,1722811847044,-151.0,0.00014794,2]
[334179502,1722811847053,-500.0,0.00014794,2]
[334179503,1722811847063,-500.0,0.00014794,2]
[334179504,1722811847073,-500.0,0.00014794,2]
[334179505,1722811847082,-500.0,0.00014794,2]
[334179506,1722811847092,-500.0,0.00014794,2]
[334179507,1722811847103,-500.0,0.00014794,2]
[334179508,1722811847112,-500.0,0.00014794,2]
[334179509,1722811847121,-500.0,0.00014794,2]
[334179510,1722811847132,-500.0,0.00014794,2]
[334179511,1722811847142,-500.0,0.00014794,2]
[334179512,1722811847153,-500.0,0.00014794,2]
[334179513,1722811847162,-1379.7,0.00014794,2]
[334179514,1722811847172,-500.0,0.00014794,2]
[334179515,1722811847182,-500.0,0.00014794,2]
[334179516,1722811847192,-635.26,0.00014794,2]
[334179517,1722811847202,-500.0,0.00014794,2]
[334179518,1722811847212,-624.11,0.00014794,2]
[334179519,1722811847222,-500.0,0.00014794,2]
[334179520,1722811847231,-1709.25,0.00014794,2]
[334179521,1722811847241,-500.0,0.00014794,2]
[334179522,1722811847252,-200.0,0.00014795,2]
[334179523,1722811847261,-2232.21,0.00014957,2]
[334179524,1722811847271,-1938.09,0.00014967,2]
[334179525,1722811847280,-1938.09,0.00014967,2]
[334179526,1722811847290,-1938.09,0.00014967,2]
[334179527,1722811847300,-151.0,0.00014967,2]
[334179528,1722811847309,-277.029286,0.00014967,2]
[334179529,1722811847318,-277.029286,0.00014967,2]
[334179530,1722811847330,-151.0,0.00014967,2]
[334179531,1722811847340,-151.0,0.00014967,2]
[334179532,1722811847350,-434.491439,0.00014967,2]
[334179533,1722811847359,-171.733572,0.00014967,2]
[334179534,1722811847369,-151.0,0.00014967,2]
[334179535,1722811847379,-434.491439,0.00014967,2]
[334179536,1722811847388,-171.733572,0.00014967,2]
[334179537,1722811847399,-157.386921,0.00014968,2]
[334179538,1722811847409,-154.369377,0.00014968,2]
[334179539,1722811847419,-177.200962,0.00014968,2]
[334179540,1722811847430,-151.0,0.00014968,2]
[334179541,1722811847440,-327.176908,0.00014968,2]
[334179542,1722811847452,-327.176908,0.00014968,2]
[334179543,1722811847462,-202.251228,0.00014968,2]
[334179544,1722811847473,-1060.99846949,0.00015,2]
[334179545,1722811847483,-20177.2458298,0.00015057,2]
[334179546,1722811847495,-964.431314,0.00015058,2]
[334179547,1722811847504,-964.431314,0.00015058,2]
[334179548,1722811847514,-151.0,0.00015058,2]
[334179549,1722811847523,-156.729694,0.00015058,2]
[334179550,1722811847536,-156.729694,0.00015058,2]
[334179551,1722811847548,-151.0,0.00015058,2]
[334179552,1722811847558,-681.142762,0.00015058,2]
[334179553,1722811847568,-681.142762,0.00015058,2]
[334179554,1722811847581,-352.535797,0.00015058,2]
[334179555,1722811847590,-352.535797,0.00015058,2]
[334179556,1722811847601,-151.0,0.00015058,2]
[334179557,1722811847612,-2232.21,0.00015065,2]
[334179558,1722811847624,-1938.09,0.00015066,2]
[334179559,1722811847634,-11173.15438869,0.00015067,2]
[334179560,1722811847644,-1630.23174338,0.00015067,2]
[334179561,1722811847653,-9675.60609712,0.00015067,2]
[334179562,1722811847664,-3767.82702172,0.00015067,2]
[334179563,1722811847675,-404.34085405,0.00015067,2]
[334179564,1722811847684,-2232.21,0.00015067,2]
[334179565,1722811847694,-500.0,0.00015068,2]
[334179566,1722811847704,-340.56,0.00015068,2]
[334179567,1722811847713,-500.0,0.00015068,2]
[334179568,1722811847722,-397.16,0.00015068,2]
[334179569,1722811847732,-384.3,0.00015068,2]
[334179570,1722811847742,-500.0,0.00015068,2]
[334179571,1722811847752,-500.0,0.00015068,2]
[334179572,1722811847763,-500.0,0.00015068,2]
[334179573,1722811847773,-500.0,0.00015068,2]
[334179574,1722811847783,-500.0,0.00015068,2]
[334179575,1722811847794,-291.21,0.00015068,2]
[334179576,1722811847803,-500.0,0.00015068,2]
[334179577,1722811847813,-500.0,0.00015068,2]
[334179578,1722811847926,-589.99,0.00015068,2]
[334179579,1722811847937,-1437.91,0.00015068,2]
[334179580,1722811847948,-500.0,0.00015068,2]
[334179581,1722811847959,-793.29,0.00015068,2]
[334179582,1722811847970,-500.0,0.00015068,2]
[334179583,1722811847981,-500.0,0.00015068,2]
[334179584,1722811847991,-500.0,0.00015068,2]
[334179585,1722811848003,-505.06,0.00015068,2]
[334179586,1722811848015,-500.0,0.00015068,2]
[334179587,1722811848025,-500.0,0.00015068,2]
[334179588,1722811848035,-500.0,0.00015068,2]
[334179589,1722811848044,-1379.7,0.00015068,2]
[334179590,1722811848053,-270.77,0.00015068,2]
[334179591,1722811848063,-500.0,0.00015068,2]
[334179592,1722811848075,-151.0,0.00015068,2]
[334179593,1722811848085,-293.68716,0.00015068,2]
[334179594,1722811848095,-500.0,0.00015068,2]
[334179595,1722811848107,-434.491439,0.00015068,2]
[334179596,1722811848119,-171.733572,0.00015068,2]
[334179597,1722811848129,-151.0,0.00015068,2]
[334179598,1722811848139,-500.0,0.00015068,2]
[334179599,1722811848149,-1709.25,0.00015068,2]
[334179600,1722811848159,-434.491439,0.00015068,2]
[334179601,1722811848169,-171.733572,0.00015068,2]
[334179602,1722811848182,-500.0,0.00015068,2]
[334179603,1722811848192,-150.112233,0.000151,2]
[334179604,1722811848202,-20177.2458298,0.00015332,2]
[334179605,1722811848212,-500.0,0.00015342,2]
[334179606,1722811848223,-376.23,0.00015342,2]
[334179607,1722811848233,-500.0,0.00015342,2]
[334179608,1722811848242,-500.0,0.00015342,2]
[334179609,1722811848253,-500.0,0.00015342,2]
[334179610,1722811848262,-589.99,0.00015342,2]
[334179611,1722811848272,-1437.91,0.00015342,2]
[334179612,1722811848282,-793.29,0.00015342,2]
[334179613,1722811848291,-500.0,0.00015342,2]
[334179614,1722811848301,-500.0,0.00015342,2]
[334179615,1722811848310,-181.65,0.00015342,2]
[334179616,1722811848320,-500.0,0.00015342,2]
[334179617,1722811848331,-212.26633877,0.00015342,2]
[334179618,1722811848340,-1379.7,0.00015342,2]
[334179619,1722811848350,-277.029286,0.00015342,2]
[334179620,1722811848359,-277.029286,0.00015342,2]
[334179621,1722811848369,-1709.25,0.00015342,2]
[334179622,1722811848380,-500.0,0.00015342,2]
[334179623,1722811848390,-294.257336,0.00015439,2]
[334179624,1722811848400,-327.176908,0.00015488,2]
[334179625,1722811848410,-327.176908,0.00015488,2]
[334179626,1722811848420,-150.112233,0.000155,2]
[334179627,1722811848430,-500.0,0.00015616,2]
[334179628,1722811848440,-500.0,0.00015616,2]
[334179629,1722811848451,-589.99,0.00015616,2]
[334179630,1722811848461,-1437.91,0.00015616,2]
[334179631,1722811848471,-793.29,0.00015616,2]
[334179632,1722811848481,-500.0,0.00015616,2]
[334179633,1722811848491,-1379.7,0.00015616,2]
[334179634,1722811848502,-1709.25,0.00015616,2]
[334179635,1722811848512,-500.0,0.00015616,2]
[334179636,1722811848521,-2232.21,0.00015686,2]
[334179637,1722811848531,-964.431314,0.00015687,2]
[334179638,1722811848544,-964.431314,0.00015687,2]
[334179639,1722811848555,-151.0,0.00015687,2]
[334179640,1722811848566,-156.729694,0.00015687,2]
[334179641,1722811848577,-156.729694,0.00015687,2]
[334179642,1722811848587,-681.142762,0.00015687,2]
[334179643,1722811848596,-681.142762,0.00015687,2]
[334179644,1722811848606,-352.535797,0.00015687,2]
[334179645,1722811848617,-352.535797,0.00015687,2]
[334179646,1722811848628,-232.7492,0.00015687,2]
[334179647,1722811848638,-1938.09,0.00015696,2]
[334179648,1722811848648,-2232.21,0.00015696,2]
[334179649,1722811848658,-2232.21,0.00015696,2]
[334179650,1722811848668,-2232.21,0.00015696,2]
[334179651,1722811848678,-2232.21,0.00015696,2]
[334179652,1722811848688,-2232.37149602,0.00015696,2]
[334179653,1722811848698,-151.0,0.00015697,2]
[334179654,1722811848708,-151.0,0.00015697,2]
[334179655,1722811848718,-151.0,0.00015697,2]
[334179656,1722811848728,-151.0,0.00015697,2]
[334179657,1722811848738,-327.176908,0.00015697,2]
[334179658,1722811848747,-327.176908,0.00015697,2]
[334179659,1722811848756,-277.029286,0.00015697,2]
[334179660,1722811848766,-277.029286,0.00015697,2]
[334179661,1722811848776,-1938.09,0.00015704,2]
[334179662,1722811848785,-1938.09,0.00015706,2]
[334179663,1722811848797,-1938.09,0.00015706,2]
[334179664,1722811848807,-35010.17630372,0.00015707,2]
[334179665,1722811848818,-29718.08740092,0.00015707,2]
[334179666,1722811848833,-151.0,0.00015707,2]
[334179667,1722811848843,-151.0,0.00015707,2]
[334179668,1722811848853,-327.176908,0.00015707,2]
[334179669,1722811848864,-327.176908,0.00015707,2]
[334179670,1722811848874,-964.431314,0.00015707,2]
[334179671,1722811848883,-964.431314,0.00015707,2]
[334179672,1722811848893,-964.431314,0.00015707,2]
[334179673,1722811848903,-964.431314,0.00015707,2]
[334179674,1722811848914,-964.431314,0.00015707,2]
[334179675,1722811848924,-964.431314,0.00015707,2]
[334179676,1722811848934,-251.824926,0.00015707,2]
[334179677,1722811848944,-156.729694,0.00015707,2]
[334179678,1722811848953,-156.729694,0.00015707,2]
[334179679,1722811848963,-156.729694,0.00015707,2]
[334179680,1722811848973,-156.729694,0.00015707,2]
[334179681,1722811848983,-156.729694,0.00015707,2]
[334179682,1722811848993,-156.729694,0.00015707,2]
[334179683,1722811849003,-1938.09,0.00015707,2]
[334179684,1722811849012,-681.142762,0.00015707,2]
[334179685,1722811849022,-681.142762,0.00015707,2]
[334179686,1722811849032,-681.142762,0.00015707,2]
[334179687,1722811849042,-681.142762,0.00015707,2]
[334179688,1722811849052,-352.535797,0.00015707,2]
[334179689,1722811849061,-352.535797,0.00015707,2]
[334179690,1722811849072,-352.535797,0.00015707,2]
[334179691,1722811849083,-352.535797,0.00015707,2]
[334179692,1722811849093,-277.029286,0.00015707,2]
[334179693,1722811849104,-277.029286,0.00015707,2]
[334179694,1722811849113,-151.0,0.00015707,2]
[334179695,1722811849124,-151.0,0.00015707,2]
[334179696,1722811849134,-151.0,0.00015707,2]
[334179697,1722811849144,-434.491439,0.00015707,2]
[334179698,1722811849154,-434.491439,0.00015707,2]
[334179699,1722811849164,-434.491439,0.00015707,2]
[334179700,1722811849174,-171.733572,0.00015707,2]
[334179701,1722811849183,-171.733572,0.00015707,2]
[334179702,1722811849193,-171.733572,0.00015707,2]
[334179703,1722811849203,-434.491439,0.00015707,2]
[334179704,1722811849213,-434.491439,0.00015707,2]
[334179705,1722811849224,-434.491439,0.00015707,2]
[334179706,1722811849234,-171.733572,0.00015707,2]
[334179707,1722811849243,-171.733572,0.00015707,2]
[334179708,1722811849253,-171.733572,0.00015707,2]
[334179709,1722811849263,-2124.35920477,0.00015708,2]
[334179710,1722811849274,-2138.98947464,0.00015708,2]
[334179711,1722811849284,-1610.56614984,0.00015708,2]
[334179712,1722811849294,-1794.47294319,0.00015708,2]
[334179713,1722811849303,-20757.81316463,0.00015708,2]
[334179714,1722811849314,-1382.82376341,0.00015708,2]
[334179715,1722811849324,-1438.19153297,0.00015708,2]
[334179716,1722811849334,-1162.72829906,0.00015708,2]
[334179717,1722811849344,-9641.65829969,0.00015708,2]
[334179718,1722811849354,-2162.43676373,0.00015708,2]
[334179719,1722811849364,-1763.34953629,0.00015708,2]
[334179720,1722811849374,-2278.01854997,0.00015708,3]
[334179721,1722811849383,-1500.0,0.00015708,2]
[334179722,1722811849392,-7034.66398336,0.00015708,2]
[334179723,1722811849407,-739.93569155,0.00015708,2]
[334179724,1722811849417,-788.8751659,0.00015708,2]
[334179725,1722811849428,-779.66389887,0.00015708,2]
[334179726,1722811849438,-600.8534117,0.00015708,2]
[334179727,1722811849448,-532.14086008,0.00015708,2]
[334179728,1722811849458,-568.56884199,0.00015708,2]
[334179729,1722811849468,-154.79103211,0.0001571,2]
[334179730,1722811849478,-7001.07154863,0.0001571,2]
[334179731,1722811849489,-694.1093999,0.0001571,2]
[334179732,1722811849499,-209.86849569,0.0001571,2]
[334179733,1722811849509,-244.84557874,0.00015712,2]
[334179734,1722811849520,-319.72766707,0.00015712,2]
[334179735,1722811849532,-248.26630501,0.00015712,2]
[334179736,1722811849545,-336.12056396,0.00015744,2]
[334179737,1722811849555,-156.73199194,0.00015744,2]
[334179738,1722811849565,-196.46943428,0.00015744,2]
[334179739,1722811849574,-287.77266661,0.00015744,2]
[334179740,1722811849585,-154.79103211,0.00015744,2]
[334179741,1722811849595,-1991.50486571,0.00015746,2]
[334179742,1722811849604,-277.029286,0.00015746,2]
[334179743,1722811849616,-10.11738371,0.00015746,2]
[334179744,1722811849727,-0.50420842,0.00015746,2]
[334179745,1722811849744,-277.029286,0.00015746,2]
[334179746,1722811849753,-205.1880395,0.00015746,2]
[334179747,1722811849763,-3087.44790236,0.00015751,2]
[334179748,1722811849773,-154.79103211,0.00015751,2]
[334179749,1722811849782,-603.79164827,0.00015751,2]
[334179750,1722811849791,-154.79103211,0.00015751,2]
[334179751,1722811849801,-154.79103211,0.00015751,2]
[334179752,1722811849810,-200.0,0.00015773,2]
[334179753,1722811849819,-3200.0,0.00015807,2]
[334179754,1722811849830,-412.94081029,0.00015851,2]
[334179755,1722811849839,-269.66609186,0.00015851,2]
[334179756,1722811849849,-159.24043179,0.00015851,2]
[334179757,1722811849858,-174.52933502,0.00015851,2]
[334179758,1722811849868,-342.05014288,0.00015851,2]
[334179759,1722811849877,-160.0,0.00015851,2]
[334179760,1722811849887,-1938.09,0.00015879,2]
[334179761,1722811849896,-526.63909506,0.0001589,2]
[334179762,1722811849906,-327.176908,0.0001589,2]
[334179763,1722811849915,-327.176908,0.0001589,2]
[334179764,1722811849925,-681.142762,0.0001589,2]
[334179765,1722811849934,-500.0,0.0001589,2]
[334179766,1722811849944,-681.142762,0.0001589,2]
[334179767,1722811849953,-589.99,0.0001589,2]
[334179768,1722811849962,-352.535797,0.0001589,2]
[334179769,1722811849971,-1437.91,0.0001589,2]
[334179770,1722811849981,-352.535797,0.0001589,2]
[334179771,1722811849990,-793.29,0.0001589,2]
[334179772,1722811849999,-500.0,0.0001589,2]
[334179773,1722811850009,-1379.7,0.0001589,2]
[334179774,1722811850018,-151.0,0.0001589,2]
[334179775,1722811850027,-434.491439,0.0001589,2]
[334179776,1722811850037,-171.733572,0.0001589,2]
[334179777,1722811850046,-1709.25,0.0001589,2]
[334179778,1722811850055,-434.491439,0.0001589,2]
[334179779,1722811850065,-171.733572,0.0001589,2]
[334179780,1722811850075,-500.0,0.0001589,2]
[334179781,1722811850085,-150.112233,0.000159,2]
[334179782,1722811850099,-964.431314,0.00015952,2]
[334179783,1722811850107,-964.431314,0.00015952,2]
[334179784,1722811850117,-156.729694,0.00015952,2]
[334179785,1722811850126,-156.729694,0.00015952,2]
[334179786,1722811850135,-209.18351946,0.00015952,2]
[334179787,1722811850145,-845.47187628,0.00015954,2]
[334179788,1722811850155,-2269.34152158,0.00015984,2]
[334179789,1722811850170,-569.9453871,0.00016,2]
[334179790,1722811850180,-2850.0,0.00016,2]
[334179791,1722811850190,-155.01743864,0.00016095,2]
[334179792,1722811850200,-816.12306889,0.00016159,2]
[334179793,1722811850210,-1938.09,0.00016162,2]
[334179794,1722811850220,-500.0,0.00016164,2]
[334179795,1722811850229,-589.99,0.00016164,2]
[334179796,1722811850238,-1437.91,0.00016164,2]
[334179797,1722811850248,-793.29,0.00016164,2]
[334179798,1722811850257,-500.0,0.00016164,2]
[334179799,1722811850267,-1379.7,0.00016164,2]
[334179800,1722811850276,-1709.25,0.00016164,2]
[334179801,1722811850285,-500.0,0.00016164,2]
[334179802,1722811850295,-306.464297,0.00016247,2]
[334179803,1722811850307,-206.9847165,0.00016247,2]
[334179804,1722811850318,-206.9847165,0.00016247,2]
[334179805,1722811850334,-153.0,0.00016261,2]
[334179806,1722811850344,-150.112233,0.000163,2]
[334179807,1722811850355,-849.39914621,0.00016309,2]
[334179808,1722811850367,-214.79869434,0.00016309,2]
[334179809,1722811850376,-290.3896961,0.00016347,2]
[334179810,1722811850385,-206.9847165,0.00016411,2]
[334179811,1722811850395,-218.4,0.00016438,2]
[334179812,1722811850404,-500.0,0.00016438,2]
[334179813,1722811850414,-589.99,0.00016438,2]
[334179814,1722811850425,-1437.91,0.00016438,2]
[334179815,1722811850436,-793.29,0.00016438,2]
[334179816,1722811850447,-110.98042321,0.00016438,2]
[334179817,1722811850461,-89.01957679,0.00016438,2]
[334179818,1722811850470,-225.44838816,0.00016438,2]
[334179819,1722811850480,-500.0,0.00016438,2]
[334179820,1722811850489,-62.82968518,0.00016438,2]
[334179831,1722812211092,1000.0,0.00027,120]
[334179899,1722813034356,-300.0,9.998e-05,2]
[334179900,1722813034366,-24.87774632,9.998e-05,2]
[334179938,1722813039239,-275.12225368,9.998e-05,2]
[334179939,1722813039249,-154.79103211,9.999e-05,2]
[334179940,1722813039258,-692.41206289,9.999e-05,2]
[334179941,1722813039267,-339.08407462,9.999e-05,2]
[334179942,1722813039277,-300.99621399,9.999e-05,2]
[334179943,1722813039286,-156.40691398,9.999e-05,2]
[334179944,1722813039295,-845.47187628,9.999e-05,2]
[334179945,1722813039305,-157.67039442,9.999e-05,2]
[334179946,1722813039315,-506.48190828,9.999e-05,2]
[334179947,1722813039327,-154.79103211,0.0001,2]
[334179948,1722813039336,-526.43294739,0.0001,2]
[334179949,1722813039346,-266.6760068,0.0001,2]
[334179950,1722813039356,-420.0,0.00010998,2]
[334179951,1722813039366,-5140.83754129,0.00011595,2]
[334179952,1722813039532,-333.95878176,0.00011595,2]
[334179953,1722813039544,-19425.20367695,0.00011595,2]
[334179954,1722813039554,-215.0,0.00012098,2]
[334179955,1722813039564,-441.5289958,0.00013597,2]
[334179956,1722813039573,-38403.1512126,0.00013688,2]
[334179957,1722813039584,-1545.73,0.00013697,2]
[334179958,1722813039594,-1545.73,0.00013697,2]
[334179959,1722813039603,-500.0,0.00013698,2]
[334179960,1722813039613,-500.0,0.00013698,2]
[334179961,1722813039622,-500.0,0.00013698,2]
[334179962,1722813039631,-500.0,0.00013698,2]
[334179963,1722813039641,-500.0,0.00013698,2]
[334179964,1722813039650,-500.0,0.00013698,2]
[334179965,1722813039659,-500.0,0.00013698,2]
[334179966,1722813039669,-500.0,0.00013698,2]
[334179967,1722813039679,-500.0,0.00013698,2]
[334179968,1722813039688,-500.0,0.00013698,2]
[334179969,1722813039698,-500.0,0.00013698,2]
[334179970,1722813039711,-500.0,0.00013698,2]
[334179971,1722813039720,-500.0,0.00013698,2]
[334179972,1722813039730,-500.0,0.00013698,2]
[334179973,1722813039740,-500.0,0.00013698,2]
[334179974,1722813039749,-500.0,0.00013698,2]
[334179975,1722813039759,-500.0,0.00013698,2]
[334179976,1722813039768,-506.22332503,0.00013698,2]
[334179977,1722813039777,-500.0,0.00013698,2]
[334179978,1722813039787,-500.0,0.00013698,2]
[334179979,1722813039797,-343.92279372,0.00013698,2]
[334179980,1722813039806,-500.0,0.00013698,2]
[334179981,1722813039816,-500.0,0.00013698,2]
[334179982,1722813039826,-500.0,0.00013698,2]
[334179983,1722813039836,-500.0,0.00013698,2]
[334179984,1722813039845,-500.0,0.00013698,2]
[334179985,1722813039855,-500.0,0.00013698,2]
[334179986,1722813039864,-223.54715243,0.00013698,2]
[334179987,1722813039874,-500.0,0.00013698,2]
[334179988,1722813039884,-500.0,0.00013698,2]
[334179989,1722813039893,-570.18784117,0.00013698,2]
[334179990,1722813039903,-500.0,0.00013698,2]
[334179991,1722813039918,-500.0,0.00013698,2]
[334179992,1722813039929,-500.0,0.00013698,2]
[334179993,1722813039941,-500.0,0.00013698,2]
[334179994,1722813039952,-500.0,0.00013698,2]
[334179995,1722813039965,-252.18930181,0.00013698,2]
[334179996,1722813039976,-500.0,0.00013698,2]
[334179997,1722813039990,-500.0,0.00013698,2]
[334179998,1722813040002,-500.0,0.00013698,2]
[334179999,1722813040012,-500.0,0.00013698,2]
[334180000,1722813040023,-500.0,0.00013698,2]
[334180001,1722813040032,-500.0,0.00013698,2]
[334180002,1722813040044,-500.0,0.00013698,2]
[334180003,1722813040054,-131.39686299,0.00013698,2]
[334180004,1722813040068,-368.60313701,0.00013698,2]
[334180005,1722813040077,-500.0,0.00013698,2]
[334180006,1722813040087,-500.0,0.00013698,2]
[334180007,1722813040096,-500.0,0.00013698,2]
[334180008,1722813040106,-500.0,0.00013698,2]
[334180009,1722813040115,-500.0,0.00013698,2]
[334180010,1722813040125,-500.0,0.00013698,2]
[334180011,1722813040134,-500.0,0.00013698,2]
[334180012,1722813040144,-500.97364635,0.00013698,2]
[334180013,1722813040154,-500.0,0.00013698,2]
[334180014,1722813040164,-500.0,0.00013698,2]
[334180015,1722813040174,-297.62054279,0.00013698,2]
[334180016,1722813040183,-500.0,0.00013698,2]
[334180017,1722813040192,-500.0,0.00013698,2]
[334180018,1722813040202,-500.0,0.00013698,2]
[334180019,1722813040214,-500.0,0.00013698,2]
[334180020,1722813040224,-500.0,0.00013698,2]
[334180021,1722813040235,-500.0,0.00013698,2]
[334180022,1722813040246,-500.0,0.00013698,2]
[334180023,1722813040258,-500.0,0.00013698,2]
[334180024,1722813040268,-500.0,0.00013698,2]
[334180025,1722813040277,-500.0,0.00013698,2]
[334180026,1722813040287,-500.0,0.00013698,2]
[334180027,1722813040296,-500.0,0.00013698,2]
[334180028,1722813040306,-500.0,0.00013698,2]
[334180029,1722813040315,-500.0,0.00013698,2]
[334180030,1722813040325,-500.0,0.00013698,2]
[334180031,1722813040334,-500.0,0.00013698,2]
[334180032,1722813040343,-500.0,0.00013698,2]
[334180033,1722813040352,-500.0,0.00013698,2]
[334180034,1722813040362,-500.0,0.00013698,2]
[334180035,1722813040371,-500.0,0.00013698,2]
[334180036,1722813040380,-500.0,0.00013698,2]
[334180037,1722813040390,-500.0,0.00013698,2]
[334180038,1722813040399,-500.0,0.00013698,2]
[334180039,1722813040409,-500.0,0.00013698,2]
[334180040,1722813040419,-500.0,0.00013698,2]
[334180041,1722813040429,-500.0,0.00013698,2]
[334180042,1722813040438,-500.0,0.00013698,2]
[334180043,1722813040447,-500.0,0.00013698,2]
[334180044,1722813040457,-500.0,0.00013698,2]
[334180045,1722813040467,-500.0,0.00013698,2]
[334180046,1722813040477,-500.0,0.00013698,2]
[334180047,1722813040487,-500.0,0.00013698,2]
[334180048,1722813040496,-500.0,0.00013698,2]
[334180049,1722813040505,-576.41902918,0.00013698,2]
[334180050,1722813040514,-500.0,0.00013698,2]
[334180051,1722813040524,-500.0,0.00013698,2]
[334180052,1722813040533,-500.0,0.00013698,2]
[334180053,1722813040542,-500.0,0.00013698,2]
[334180054,1722813040552,-500.0,0.00013698,2]
[334180055,1722813040562,-500.0,0.00013698,2]
[334180056,1722813040572,-500.0,0.00013698,2]
[334180057,1722813040584,-500.0,0.00013698,2]
[334180058,1722813040594,-500.0,0.00013698,2]
[334180059,1722813040605,-500.0,0.00013698,2]
[334180060,1722813040616,-500.0,0.00013698,2]
[334180061,1722813040626,-500.0,0.00013698,2]
[334180062,1722813040635,-500.0,0.00013698,2]
[334180063,1722813040645,-500.0,0.00013698,2]
[334180064,1722813040655,-500.0,0.00013698,2]
[334180065,1722813040664,-500.0,0.00013698,2]
[334180066,1722813040674,-500.0,0.00013698,2]